bitfinex-derivatives/quotes_BTCF0:USTF0_20251002
["timestamp","ask_amount","ask_price","bid_price","bid_amount"]
[1759426909824,2.05816995,119600.0,119590.0,0.76880855]
[1759426910123,1.7337332,119600.0,119590.0,0.76880855]
[1759426910317,2.05816995,119600.0,119590.0,0.76880855]
[1759426910517,1.3334532,119600.0,119590.0,0.87292902]
[1759426910712,1.3334532,119600.0,119590.0,1.23372902]
[1759426910923,0.5758132,119600.0,119590.0,1.23372902]
[1759426911123,1.3334532,119600.0,119590.0,1.23372902]
[1759426916826,1.3334532,119600.0,119590.0,1.22037902]
[1759426917729,1.3334532,119600.0,119590.0,1.23423902]
[1759426919036,1.3334532,119600.0,119590.0,1.22037902]
[1759426920133,1.3334532,119600.0,119590.0,1.23423902]
[1759426920334,1.3201332,119600.0,119590.0,1.55867577]
[1759426920842,1.3200932,119600.0,119590.0,1.55867577]
[1759426923441,0.5624932,119600.0,119590.0,1.55867577]
[1759426923642,0.04316676,119600.0,119590.0,2.28311252]
[1759426923843,0.02149,119610.0,119600.0,0.1196748]
[1759426924036,0.7242594,119610.0,119600.0,1.52185552]
[1759426924437,0.7242594,119610.0,119600.0,1.19741877]
[1759426924643,0.28849776,119610.0,119600.0,1.19741877]
[1759426926944,0.7242594,119610.0,119600.0,1.19741877]
[1759426929942,0.28849776,119610.0,119600.0,1.19741877]
[1759426930145,0.7242594,119610.0,119600.0,1.19741877]
[1759426931840,0.04209776,119610.0,119600.0,1.52185552]
[1759426932040,0.75752,119610.0,119600.0,1.52185552]
[1759426934153,0.77811111,119610.0,119600.0,1.52185552]
[1759426934342,0.77811111,119610.0,119600.0,1.19683775]
[1759426934343,0.77901,119610.0,119600.0,1.19683775]
[1759426934845,0.02058326,119610.0,119600.0,1.59683775]
[1759426935043,0.07381123,119630.0,119620.0,0.1196608]
[1759426935244,0.07381123,119630.0,119620.0,1.62569422]
[1759426935245,0.77806412,119630.0,119620.0,1.62569422]
[1759426935549,0.77806412,119630.0,119620.0,1.30154798]
[1759426936750,0.02250075,119640.0,119620.0,1.62569422]
[1759426937054,0.45725164,119670.0,119660.0,0.11963]
[1759426937244,0.54076754,119670.0,119660.0,1.08185624]
[1759426937448,0.1050059,119670.0,119660.0,1.08185624]
[1759426937651,0.54076754,119670.0,119660.0,1.08185624]
[1759426938250,0.54076754,119670.0,119660.0,1.16537914]
[1759426938955,0.55438754,119670.0,119660.0,1.16537914]
[1759426940650,0.54076754,119670.0,119660.0,1.16537914]
[1759426942157,0.45725164,119670.0,119660.0,1.16537914]
[1759426944354,0.55374754,119670.0,119660.0,1.08185624]
[1759426945058,0.95374754,119670.0,119660.0,0.8051229]
[1759426945254,0.7686859,119670.0,119660.0,0.6057175]
[1759426945659,0.67219,119670.0,119660.0,0.6194075]
[1759426945850,0.27219,119670.0,119660.0,0.6194075]
[1759426946050,1.03023,119670.0,119660.0,0.6194075]
[1759426947154,1.1137459,119670.0,119660.0,0.6194075]
[1759426947957,1.1265159,119670.0,119660.0,0.28157126]
[1759426948357,1.1265159,119670.0,119660.0,0.6057175]
[1759426950765,1.5265159,119670.0,119660.0,0.25926126]
[1759426950958,1.5265159,119670.0,119660.0,0.5834075]
[1759426951160,1.5265159,119670.0,119660.0,0.6058075]
[1759426951771,1.5265159,119670.0,119660.0,0.25926126]
[1759426951964,1.85066214,119670.0,119660.0,0.0835229]
[1759426952274,1.54663473,119670.0,119660.0,0.40766914]
[1759426952462,1.54663473,119670.0,119660.0,0.43006914]
[1759426954068,0.1189629,119660.0,119650.0,0.4667249]
[1759426954266,0.3696629,119660.0,119650.0,0.79087114]
[1759426954670,0.3696629,119660.0,119650.0,0.80456114]
[1759426956465,0.864229,119670.0,119660.0,0.01369]
[1759426956668,0.44861722,119680.0,119670.0,0.1196059]
[1759426956669,0.07419722,119680.0,119670.0,0.1196059]
[1759426956973,0.01277,119700.0,119670.0,0.1196059]
[1759426956974,0.03087178,119690.0,119680.0,0.1195965]
[1759426957173,0.68808978,119690.0,119680.0,0.80450074]
[1759426957468,0.273328,119690.0,119680.0,0.80450074]
[1759426957673,0.02267,119700.0,119690.0,0.119592]
[1759426957874,0.02267,119700.0,119690.0,1.12868448]
[1759426957875,0.68187,119700.0,119690.0,1.12868448]
[1759426958171,0.03096846,119710.0,119700.0,0.119585]
[1759426958367,0.78964846,119710.0,119700.0,1.12867748]
[1759426958670,1.032086,119710.0,119700.0,1.12863548]
[1759426958969,0.7588,119710.0,119700.0,1.52863548]
[1759426959266,0.02267,119720.0,119710.0,0.083488]
[1759426959574,0.753086,119720.0,119710.0,0.480378]
[1759426959868,0.85755979,119720.0,119710.0,0.3608]
[1759426960061,1.25755979,119720.0,119710.0,0.3608]
[1759426960669,1.31481311,119720.0,119710.0,0.3608]
[1759426960868,0.03544,119710.0,119700.0,0.3832]
[1759426961070,0.286056,119710.0,119700.0,0.3832]
[1759426961466,0.286056,119710.0,119700.0,0.70734624]
[1759426961668,0.118935,119700.0,119690.0,0.3832]
[1759426961971,1.128751,119700.0,119690.0,0.3608]
[1759426962873,1.128751,119700.0,119690.0,0.3832]
[1759426963372,1.128751,119700.0,119690.0,0.3608]
[1759426963572,1.128751,119700.0,119690.0,0.3832]
[1759426965174,0.03544,119690.0,119680.0,0.4667083]
[1759426965468,0.286056,119690.0,119680.0,0.4667083]
[1759426966468,0.273286,119690.0,119680.0,0.4803983]
[1759426966663,1.032326,119690.0,119680.0,0.4803983]
[1759426967067,1.032326,119690.0,119680.0,0.83219055]
[1759426967269,0.273286,119690.0,119680.0,0.83219055]
[1759426967468,1.032326,119690.0,119680.0,0.83219055]
[1759426967672,0.78163,119690.0,119680.0,0.83219055]
[1759426968772,0.80166772,119690.0,119680.0,0.83219055]
[1759426968977,0.80166772,119690.0,119680.0,0.4803983]
[1759426969178,0.80166772,119690.0,119680.0,0.83219055]
[1759426969472,0.02003772,119690.0,119680.0,0.83219055]
[1759426969674,0.77911772,119690.0,119680.0,0.83219055]
[1759426969875,0.02267,119700.0,119690.0,0.0971872]
[1759426970080,0.80178609,119700.0,119690.0,0.83217945]
[1759426970576,1.05240209,119700.0,119690.0,0.83217945]
[1759426971477,1.05240209,119700.0,119690.0,0.74868225]
[1759426971478,1.13589709,119700.0,119690.0,0.74868225]
[1759426971666,0.30609209,119700.0,119690.0,0.74868225]
[1759426971869,1.05228209,119700.0,119690.0,0.83218425]
[1759426973467,1.13577709,119700.0,119690.0,0.83218425]
[1759426973673,1.14854709,119700.0,119690.0,0.3832]
[1759426974076,1.06505209,119700.0,119690.0,0.3608]
[1759426974383,1.14854503,119700.0,119690.0,0.3608]
[1759426974784,0.37681503,119700.0,119690.0,0.74868225]
[1759426974977,1.13565503,119700.0,119690.0,0.74868225]
[1759426975287,1.13565503,119700.0,119690.0,0.39689]
[1759426975479,1.13565503,119700.0,119690.0,0.74868225]
[1759426975778,1.14852503,119700.0,119690.0,0.466702]
[1759426976686,1.14852503,119700.0,119690.0,0.3832]
[1759426976880,0.119029,119680.0,119670.0,0.3608]
[1759426977076,0.1190359,119670.0,119660.0,0.02102]
[1759426977279,0.3896847,119670.0,119660.0,0.1045429]
[1759426977582,1.1495247,119670.0,119660.0,0.1175129]
[1759426978386,1.1495247,119670.0,119660.0,0.02102]
[1759426978592,1.1495247,119670.0,119660.0,0.1045429]
[1759426979378,0.1190429,119660.0,119650.0,0.83010715]
[1759426979578,0.72145115,119660.0,119650.0,0.3608]
[1759426979774,0.1190499,119650.0,119640.0,0.4653513]
[1759426979983,1.13822397,119650.0,119640.0,0.38182]
[1759426980181,0.1190569,119640.0,119630.0,0.38182]
[1759426980382,0.1190639,119630.0,119620.0,8.84e-05]
[1759426980579,0.38970547,119630.0,119620.0,0.1046593]
[1759426980779,1.13727547,119630.0,119620.0,0.1176293]
[1759426980988,1.13727547,119630.0,119620.0,1.23022155]
[1759426980989,0.80311557,119630.0,119620.0,1.23022155]
[1759426981180,0.78309,119630.0,119620.0,1.23022155]
[1759426982585,0.0964109,119640.0,119620.0,1.23022155]
[1759426982586,0.1061909,119640.0,119630.0,0.1175339]
[1759426982779,0.88742994,119640.0,119630.0,0.1175339]
[1759426982980,1.15091594,119640.0,119630.0,0.1045639]
[1759426983379,1.1309169,119640.0,119630.0,0.1045639]
[1759426983578,1.1309169,119640.0,119630.0,0.1175339]
[1759426983781,0.273266,119640.0,119630.0,0.4783339]
[1759426983980,0.1061834,119650.0,119640.0,0.1175269]
[1759426984179,0.8673434,119650.0,119640.0,0.46931915]
[1759426984379,0.273266,119650.0,119640.0,0.83011915]
[1759426984583,1.1180359,119650.0,119640.0,0.83011915]
[1759426984785,1.1179959,119650.0,119640.0,0.83011915]
[1759426985387,1.1179959,119650.0,119640.0,0.4783269]
[1759426987387,1.1308659,119650.0,119640.0,0.4783269]
[1759426987589,1.1308659,119650.0,119640.0,0.39479]
[1759426989087,1.1308659,119650.0,119640.0,0.38182]
[1759426989285,0.1061869,119640.0,119630.0,0.4783297]
[1759426989481,0.3568029,119640.0,119630.0,0.4783297]
[1759426989785,0.3568029,119640.0,119630.0,0.83012195]
[1759426991493,0.273266,119640.0,119630.0,0.83012195]
[1759426991787,1.034306,119640.0,119630.0,0.83012195]
[1759426992492,1.1178429,119640.0,119630.0,0.4783297]
[1759426992694,1.1178429,119640.0,119630.0,0.83012195]
[1759426993186,0.273266,119640.0,119630.0,0.83012195]
[1759426993391,1.011536,119640.0,119630.0,0.83012195]
[1759426993890,1.034186,119640.0,119630.0,0.83012195]
[1759426995087,1.034186,119640.0,119630.0,1.23012195]
[1759426995088,0.250616,119640.0,119630.0,1.23012195]
[1759426995287,0.18173223,119660.0,119650.0,0.1175199]
[1759426995489,1.05274823,119660.0,119650.0,0.83011215]
[1759426995787,0.9771916,119660.0,119650.0,0.83011215]
[1759426996394,0.9771916,119660.0,119650.0,0.88323001]
[1759426997593,0.273266,119660.0,119650.0,0.4783199]
[1759426997794,1.035786,119660.0,119650.0,1.24403001]
[1759426998100,1.013136,119660.0,119650.0,1.24403001]
[1759426998601,0.76252,119660.0,119650.0,1.24403001]
[1759426999288,0.16396325,119680.0,119670.0,0.1175059]
[1759426999289,0.1061636,119680.0,119670.0,0.1175059]
[1759426999491,1.1193349,119680.0,119670.0,0.88321601]
[1759427001492,1.1193349,119680.0,119670.0,0.4783059]
[1759427001791,1.1193349,119680.0,119670.0,0.88321601]
[1759427002900,1.1322049,119680.0,119670.0,0.88321601]
[1759427003197,0.3696449,119680.0,119670.0,0.88321601]
[1759427003386,1.1319649,119680.0,119670.0,0.87024601]
[1759427003696,1.1319649,119680.0,119670.0,0.4653359]
[1759427003899,1.1319649,119680.0,119670.0,0.02102]
[1759427004088,1.1319649,119680.0,119660.0,0.86220301]
[1759427004292,0.3694319,119670.0,119660.0,0.4657429]
[1759427004693,0.3694319,119670.0,119660.0,0.4792629]
[1759427004897,0.3563919,119670.0,119660.0,0.88417301]
[1759427005204,0.1057759,119670.0,119660.0,0.52337301]
[1759427006101,0.1187559,119670.0,119660.0,0.52337301]
[1759427009101,0.1187559,119670.0,119660.0,0.1184629]
[1759427009302,0.1187559,119670.0,119660.0,0.50985301]
[1759427009802,0.1187559,119670.0,119660.0,0.1049429]
[1759427010103,0.1187559,119670.0,119660.0,0.50985301]
[1759427010301,0.44270098,119670.0,119660.0,0.75283306]
[1759427010599,0.1187559,119670.0,119660.0,0.75283306]
[1759427011199,0.1187559,119670.0,119660.0,0.76568306]
[1759427011697,0.1057759,119670.0,119660.0,0.76568306]
[1759427013501,0.1057759,119670.0,119660.0,0.1177929]
[1759427013801,0.1057759,119670.0,119660.0,0.76568306]
[1759427014896,0.1057759,119670.0,119660.0,0.1177929]
[1759427015098,0.1057759,119670.0,119660.0,0.76568306]
[1759427015902,0.1057759,119670.0,119660.0,0.1177929]
[1759427016207,0.1057759,119670.0,119660.0,0.76568306]
[1759427016593,0.1057759,119670.0,119660.0,0.1177929]
[1759427016896,0.1057759,119670.0,119660.0,0.76568306]
[1759427017899,0.1057759,119670.0,119660.0,0.1177929]
[1759427018102,0.1057759,119670.0,119660.0,0.76568306]
[1759427019099,0.8670159,119670.0,119660.0,0.76568306]
[1759427020006,0.8447559,119670.0,119660.0,0.76568306]
[1759427020606,0.8676659,119670.0,119660.0,0.76568306]
[1759427022405,0.8676659,119670.0,119660.0,0.81053256]
[1759427022800,0.78415,119670.0,119660.0,0.81053256]
[1759427023002,0.4672231,119680.0,119670.0,0.0963658]
[1759427023201,0.8873532,119680.0,119670.0,0.44258088]
[1759427023810,0.8872332,119680.0,119670.0,0.44258088]
[1759427024204,0.8872332,119680.0,119670.0,0.1186358]
[1759427024506,0.92259912,119680.0,119670.0,0.44258088]
[1759427026111,0.90961912,119680.0,119670.0,0.44258088]
[1759427026409,0.90937912,119680.0,119670.0,0.76652596]
[1759427026808,0.90937912,119680.0,119670.0,0.44258088]
[1759427027407,0.90937912,119680.0,119670.0,0.1186358]
[1759427027608,0.90937912,119680.0,119670.0,0.44258088]
[1759427027912,0.92235912,119680.0,119670.0,0.1186358]
[1759427028111,0.92235912,119680.0,119670.0,0.42973088]
[1759427028409,1.28315912,119680.0,119670.0,0.42973088]
[1759427028809,0.8465042,119680.0,119670.0,0.34621508]
[1759427029001,0.1194055,119670.0,119660.0,0.48743068]
[1759427029211,0.46332068,119670.0,119660.0,0.48743068]
[1759427029406,0.46332068,119670.0,119660.0,0.81137576]
[1759427030809,0.46332068,119670.0,119660.0,0.1506356]
[1759427031012,0.46332068,119670.0,119660.0,0.79852576]
[1759427031897,0.1393756,119670.0,119660.0,0.81137576]
[1759427032212,0.46332068,119670.0,119660.0,0.1634856]
[1759427032406,0.1393756,119670.0,119660.0,0.81137576]
[1759427032606,0.1393756,119670.0,119660.0,0.1634856]
[1759427032808,0.1393756,119670.0,119660.0,0.81137576]
[1759427034104,0.1393756,119670.0,119660.0,0.1634856]
[1759427034803,0.1393756,119670.0,119660.0,0.81137576]
[1759427035404,0.46332068,119670.0,119660.0,0.48743068]
[1759427035609,1.54806576,119670.0,119660.0,0.0448495]
[1759427035807,1.54806576,119670.0,119650.0,0.39055458]
[1759427035808,0.1180519,119660.0,119650.0,0.39055458]
[1759427036016,1.58296708,119660.0,119650.0,0.47408318]
[1759427037402,1.259022,119660.0,119650.0,0.47408318]
[1759427037603,1.245602,119660.0,119650.0,0.44190368]
[1759427038615,1.245602,119660.0,119650.0,0.1179586]
[1759427038818,1.245602,119660.0,119650.0,0.44190368]
[1759427041209,0.884522,119660.0,119650.0,0.44190368]
[1759427041715,0.124602,119660.0,119650.0,0.44190368]
[1759427041913,0.884522,119660.0,119650.0,0.76584876]
[1759427042415,0.884522,119660.0,119650.0,0.44190368]
[1759427042807,0.897942,119660.0,119650.0,0.44190368]
[1759427043113,1.22188708,119660.0,119650.0,0.42923368]
[1759427043314,1.58268708,119660.0,119650.0,0.42923368]
[1759427043812,1.58268708,119660.0,119650.0,0.34570508]
[1759427044014,1.58268708,119660.0,119650.0,0.1052888]
[1759427044218,1.58268708,119660.0,119650.0,0.42923388]
[1759427045211,1.56271698,119660.0,119650.0,0.0835288]
[1759427045417,1.56271698,119660.0,119650.0,0.40747388]
[1759427045715,1.58285211,119660.0,119650.0,0.42923388]
[1759427046409,1.56271698,119660.0,119650.0,0.42923388]
[1759427049317,1.56271698,119660.0,119640.0,0.4186195]
[1759427049518,0.44200388,119650.0,119640.0,0.0666095]
[1759427049824,0.1180658,119640.0,119630.0,0.47409258]
[1759427050018,0.8775058,119640.0,119630.0,0.47409258]
[1759427050719,1.20145088,119640.0,119630.0,0.47409258]
[1759427051025,1.56225088,119640.0,119630.0,0.42924788]
[1759427051828,1.63065498,119640.0,119630.0,0.42924788]
[1759427052423,1.63065498,119640.0,119620.0,0.84765828]
[1759427052424,0.1180727,119630.0,119620.0,0.84765828]
[1759427052726,0.1180727,119630.0,119620.0,0.0218484]
[1759427052727,0.80281778,119630.0,119620.0,0.0218484]
[1759427053022,0.80281778,119630.0,119620.0,0.34579348]
[1759427053321,1.24714882,119630.0,119620.0,0.42934318]
[1759427053522,0.88630882,119630.0,119620.0,0.75328826]
[1759427054025,1.24710882,119630.0,119620.0,0.75328826]
[1759427054526,0.48734882,119630.0,119620.0,0.76595826]
[1759427054721,1.24714882,119630.0,119620.0,0.76595826]
[1759427055624,1.24714882,119630.0,119620.0,0.1053981]
[1759427055825,1.24714882,119630.0,119620.0,0.75328826]
[1759427057326,1.24714882,119630.0,119620.0,0.76595826]
[1759427057730,1.24710882,119630.0,119620.0,0.76595826]
[1759427058225,1.24710882,119630.0,119620.0,0.4422009]
[1759427058425,1.24710882,119630.0,119620.0,0.1053981]
[1759427058826,1.24710882,119630.0,119620.0,0.4295309]
[1759427060530,0.48734882,119630.0,119620.0,0.4295309]
[1759427060728,1.24678882,119630.0,119620.0,0.4295309]
[1759427061429,1.24678882,119630.0,119620.0,0.1053981]
[1759427061630,1.24678882,119630.0,119620.0,0.4295309]
[1759427063636,1.24678882,119630.0,119620.0,0.105398]
[1759427063832,1.57092162,119630.0,119620.0,0.0218484]
[1759427064629,1.57092162,119630.0,119620.0,0.1053981]
[1759427064630,1.24678882,119630.0,119620.0,0.1053981]
[1759427065431,1.24654882,119630.0,119620.0,0.4426909]
[1759427065933,1.23312882,119630.0,119620.0,0.4426909]
[1759427068527,1.24699882,119630.0,119620.0,0.4426909]
[1759427071034,1.26709415,119630.0,119620.0,0.4426909]
[1759427074241,1.26665415,119630.0,119620.0,0.4426909]
[1759427075136,1.26665415,119630.0,119620.0,0.4295309]
[1759427075535,1.26665415,119630.0,119620.0,0.1185581]
[1759427076041,1.26665415,119630.0,119620.0,0.4426909]
[1759427077935,0.49402415,119630.0,119620.0,0.4426909]
[1759427078139,0.80836145,119630.0,119620.0,1.2034909]
[1759427078438,0.02009533,119630.0,119620.0,0.8793581]
[1759427078643,0.1732801,119640.0,119630.0,0.1178527]
[1759427078945,0.95225214,119640.0,119630.0,0.4419855]
[1759427079339,0.86871614,119640.0,119630.0,0.4419855]
[1759427079543,0.95225184,119640.0,119630.0,0.4419855]
[1759427079845,0.96612184,119640.0,119630.0,0.4419855]
[1759427080545,0.95225184,119640.0,119630.0,0.4419855]
[1759427081042,0.95221184,119640.0,119630.0,0.4419855]
[1759427081943,0.96055659,119640.0,119630.0,0.4419855]
[1759427082139,0.96055659,119640.0,119630.0,0.847635]
[1759427082644,0.87694089,119640.0,119630.0,0.847635]
[1759427082844,0.86859614,119640.0,119630.0,0.847635]
[1759427083032,0.04147204,119640.0,119630.0,1.5717678]
[1759427083239,0.39556,119660.0,119650.0,0.1178388]
[1759427083545,1.18296119,119660.0,119650.0,0.1178388]
[1759427083938,1.18296119,119660.0,119650.0,0.4419716]
[1759427084753,1.25101981,119660.0,119650.0,0.4419716]
[1759427085747,1.25101981,119660.0,119650.0,0.1178388]
[1759427085938,1.25101981,119660.0,119650.0,0.4419716]
[1759427087748,1.25101981,119660.0,119650.0,0.4288116]
[1759427088045,1.33454171,119660.0,119650.0,0.1046788]
[1759427088241,1.65867451,119660.0,119650.0,0.0835288]
[1759427088548,1.33454171,119660.0,119650.0,0.0835288]
[1759427088846,1.33454171,119660.0,119650.0,0.1046788]
[1759427092244,1.25101981,119660.0,119650.0,0.1046788]
[1759427092843,1.25095096,119660.0,119650.0,0.1046788]
[1759427093043,1.2308834,119660.0,119650.0,0.1046788]
[1759427093750,1.3144052,119660.0,119650.0,0.1046788]
[1759427094453,1.3144052,119660.0,119650.0,0.4288116]
[1759427095752,1.3144052,119660.0,119650.0,0.1046788]
[1759427096048,1.3144052,119660.0,119650.0,0.4288116]
[1759427096350,1.2308834,119660.0,119650.0,0.4288116]
[1759427096850,1.3144051,119660.0,119650.0,0.4288116]
[1759427097051,1.2308834,119660.0,119650.0,0.4288116]
[1759427098050,0.8700834,119660.0,119650.0,0.4288116]
[1759427101452,0.1114034,119660.0,119650.0,0.1046788]
[1759427101651,0.8696834,119660.0,119650.0,0.4288116]
[1759427103050,0.1114034,119660.0,119650.0,0.4288116]
[1759427103258,0.08939862,119660.0,119650.0,1.2028216]
[1759427103459,0.84767862,119660.0,119650.0,1.24788621]
[1759427105760,0.08939862,119660.0,119650.0,1.24788621]
[1759427105958,0.84767862,119660.0,119650.0,1.24788621]
[1759427107359,0.77962,119660.0,119650.0,1.24788621]
[1759427109156,0.06694397,119670.0,119650.0,1.2028216]
[1759427109366,0.02187,119670.0,119660.0,0.84803317]
[1759427109658,0.78011,119670.0,119660.0,0.84803317]
[1759427110548,0.02187,119670.0,119660.0,1.17216597]
[1759427110748,0.78007,119670.0,119660.0,1.17216597]
[1759427110951,0.78007,119670.0,119660.0,1.58047991]
[1759427111156,0.02187,119690.0,119680.0,0.1180478]
[1759427111348,0.80016988,119690.0,119680.0,0.4421806]
[1759427112254,0.86734309,119690.0,119680.0,0.4421806]
[1759427112951,0.86734309,119690.0,119680.0,0.1180478]
[1759427113155,0.84724321,119690.0,119680.0,0.4421806]
[1759427113559,0.84724321,119690.0,119680.0,0.8029806]
[1759427115061,0.85558791,119690.0,119680.0,0.8029806]
[1759427118159,0.86945791,119690.0,119680.0,0.8029806]
[1759427118369,0.85558791,119690.0,119680.0,0.8029806]
[1759427120261,0.85558791,119690.0,119680.0,1.12644658]
[1759427121267,0.78007,119690.0,119680.0,1.12644658]
[1759427121461,0.78007,119690.0,119680.0,1.52644658]
[1759427124262,0.80014763,119690.0,119680.0,1.52644658]
[1759427125960,0.80014763,119690.0,119680.0,0.8788478]
[1759427126164,0.80014763,119690.0,119680.0,1.52644658]
[1759427126466,0.80014763,119690.0,119680.0,0.8788478]
[1759427126666,0.80014763,119690.0,119680.0,1.52644658]
[1759427127869,0.78007,119690.0,119680.0,1.52644658]
[1759427128270,0.8001542,119690.0,119680.0,1.52644658]
[1759427129157,0.8001542,119690.0,119680.0,0.8788478]
[1759427129363,0.8001542,119690.0,119680.0,1.52644658]
[1759427132781,0.8836545,119690.0,119680.0,1.12644658]
[1759427132959,0.8970845,119690.0,119680.0,1.12644658]
[1759427133864,1.22088389,119690.0,119680.0,0.42863719]
[1759427134365,0.8770003,119690.0,119680.0,0.42863719]
[1759427134568,1.20079969,119690.0,119680.0,0.42863719]
[1759427135562,1.22091126,119690.0,119680.0,0.42863719]
[1759427135974,1.20079969,119690.0,119680.0,0.42863719]
[1759427136169,1.22090993,119690.0,119680.0,0.42863719]
[1759427137375,0.89711054,119690.0,119680.0,0.42863719]
[1759427137675,1.22090993,119690.0,119680.0,0.42863719]
[1759427137880,1.58170993,119690.0,119680.0,0.42863719]
[1759427138174,0.89711054,119690.0,119680.0,0.1048378]
[1759427138376,1.25791054,119690.0,119680.0,0.1048378]
[1759427138768,1.58170993,119690.0,119680.0,0.1048378]
[1759427138968,1.58170993,119690.0,119680.0,0.42863719]
[1759427139566,0.89711054,119690.0,119680.0,0.42863719]
[1759427139770,0.89711054,119690.0,119680.0,0.1187678]
[1759427140066,0.89711054,119690.0,119680.0,0.76636658]
[1759427140067,0.12548054,119690.0,119680.0,0.76636658]
[1759427140269,0.88340054,119690.0,119680.0,0.76636658]
[1759427140470,0.88340054,119690.0,119680.0,0.8113985]
[1759427141978,0.89683054,119690.0,119680.0,0.16379972]
[1759427142177,0.89683054,119690.0,119680.0,0.8113985]
[1759427142974,0.89683054,119690.0,119680.0,0.16379972]
[1759427143179,1.22062993,119690.0,119680.0,0.7974685]
[1759427143572,0.88340054,119690.0,119680.0,0.8113985]
[1759427144175,1.58142993,119690.0,119680.0,0.04503192]
[1759427144373,1.58142993,119690.0,119680.0,0.47417861]
[1759427144569,1.58142993,119690.0,119680.0,0.42914669]
[1759427145581,0.1201073,119680.0,119670.0,0.04503192]
[1759427145775,0.1201143,119670.0,119660.0,0.04503192]
[1759427146076,0.0366,119660.0,119650.0,0.83499491]
[1759427146281,0.80116024,119660.0,119650.0,1.1727243]
[1759427146669,0.78105,119660.0,119650.0,1.12769238]
[1759427147072,0.02317,119660.0,119650.0,0.4800936]
[1759427147370,0.02317,119670.0,119660.0,0.0974512]
[1759427147568,0.35753,119670.0,119660.0,1.12768998]
[1759427148084,0.4410442,119670.0,119660.0,1.12768998]
[1759427150178,0.78109,119670.0,119660.0,1.12768998]
[1759427150574,0.106679,119680.0,119670.0,0.0835141]
[1759427150773,0.864599,119680.0,119670.0,1.12768288]
[1759427150973,0.78109,119680.0,119670.0,1.12768288]
[1759427151373,0.02317,119680.0,119670.0,1.12768288]
[1759427151577,0.78109,119680.0,119670.0,1.12768288]
[1759427153283,0.02317,119680.0,119670.0,1.12768288]
[1759427153487,0.48413,119680.0,119670.0,1.12768288]
[1759427153683,0.17340936,119700.0,119680.0,0.0835071]
[1759427153878,0.21690619,119700.0,119690.0,0.80386949]
[1759427154080,0.20347619,119700.0,119690.0,1.12766888]
[1759427154390,0.80141683,119700.0,119690.0,1.12766888]
[1759427155588,0.88490983,119700.0,119690.0,1.12766888]
[1759427155781,0.80141683,119700.0,119690.0,1.12766888]
[1759427156180,0.78109,119700.0,119690.0,1.12766888]
[1759427158290,0.02317,119700.0,119690.0,0.8800701]
[1759427158582,0.02228,119720.0,119710.0,0.1183262]
[1759427158781,0.38992,119720.0,119710.0,1.12672498]
[1759427158982,0.39824569,119720.0,119710.0,1.12672498]
[1759427159188,0.38992,119720.0,119710.0,1.12672498]
[1759427159382,0.38992,119720.0,119710.0,1.48752498]
[1759427159587,0.36764,119720.0,119710.0,1.88752498]
[1759427160190,0.36764,119720.0,119710.0,2.21132437]
[1759427160392,0.8636255,119740.0,119730.0,0.1183068]
[1759427160691,0.76610926,119740.0,119730.0,1.12670558]
[1759427160886,0.75784,119740.0,119730.0,1.12670558]
[1759427161085,0.75784,119740.0,119730.0,1.88750558]
[1759427161287,0.02228,119760.0,119750.0,0.1182983]
[1759427161492,0.88399177,119760.0,119750.0,1.12669708]
[1759427161689,0.88399177,119760.0,119750.0,0.80289769]
[1759427162195,0.88399177,119760.0,119750.0,0.8833542]
[1759427162487,0.8636913,119760.0,119750.0,0.8833542]
[1759427163691,0.8636913,119760.0,119750.0,0.883354]
[1759427164289,0.8839462,119760.0,119750.0,0.883354]
[1759427164786,0.89218363,119760.0,119750.0,0.883354]
[1759427164984,0.90486363,119760.0,119750.0,0.39564]
[1759427165184,0.118418,119750.0,119740.0,0.4662408]
[1759427165382,0.118418,119750.0,119740.0,0.8704967]
[1759427165588,0.02228,119750.0,119740.0,0.8833567]
[1759427167893,0.8637761,119760.0,119750.0,0.1182978]
[1759427168195,0.88400805,119760.0,119750.0,0.8833537]
[1759427170190,0.8637761,119760.0,119750.0,0.8833537]
[1759427174990,0.8637761,119760.0,119750.0,0.4790978]
[1759427175190,0.8637761,119760.0,119750.0,0.8833537]
[1759427175797,0.8764561,119760.0,119750.0,0.8833537]
[1759427175986,0.8764561,119760.0,119750.0,0.8704937]
[1759427176598,0.8764561,119760.0,119750.0,0.4662378]
[1759427182199,0.1184161,119760.0,119750.0,0.4662378]
[1759427182502,0.8770961,119760.0,119750.0,0.4662378]
[1759427182797,0.1184161,119760.0,119750.0,0.4790978]
[1759427182998,0.8770961,119760.0,119750.0,0.4790978]
[1759427184202,0.8770961,119760.0,119750.0,0.80253588]
[1759427184594,1.56133418,119760.0,119750.0,0.02198]
[1759427184800,0.119513,119740.0,119730.0,0.80188238]
[1759427185000,0.878273,119740.0,119730.0,0.80188238]
[1759427185501,0.878273,119740.0,119730.0,0.78902238]
[1759427187002,0.878273,119740.0,119730.0,0.4655843]
[1759427187199,1.20171108,119740.0,119730.0,0.02132]
[1759427187402,0.1196399,119730.0,119720.0,0.02296]
[1759427187705,0.1196469,119720.0,119710.0,0.02296]
[1759427188000,0.1196539,119710.0,119700.0,0.39724]
[1759427188193,0.1196539,119710.0,119700.0,0.72067808]
[1759427188397,0.13997967,119710.0,119700.0,0.72067808]
[1759427189206,0.1196539,119710.0,119700.0,0.72067808]
[1759427189405,0.1196539,119710.0,119700.0,0.38376]
[1759427189608,0.13997594,119710.0,119700.0,0.34639808]
[1759427190297,0.1196606,119700.0,119690.0,0.38376]
[1759427190494,0.90753968,119700.0,119690.0,0.02296]
[1759427191306,0.88722974,119700.0,119690.0,0.02296]
[1759427191605,0.88734974,119700.0,119690.0,0.02296]
[1759427191909,0.1196681,119690.0,119680.0,0.39647]
[1759427192797,0.8788681,119690.0,119680.0,0.39647]
[1759427193601,0.8787881,119690.0,119680.0,0.38376]
[1759427194605,0.1196681,119690.0,119680.0,0.38376]
[1759427194912,0.1196681,119690.0,119680.0,0.39647]
[1759427195612,0.8787881,119690.0,119680.0,0.39647]
[1759427195912,0.8650981,119690.0,119680.0,0.39647]
[1759427196209,0.8650981,119690.0,119680.0,0.4799749]
[1759427196410,0.8650181,119690.0,119680.0,0.4799749]
[1759427197909,0.8787081,119690.0,119680.0,0.4799749]
[1759427198214,0.8787081,119690.0,119680.0,0.4672649]
[1759427198915,0.1059781,119690.0,119680.0,0.4799749]
[1759427199209,0.8649381,119690.0,119680.0,0.4799749]
[1759427200513,0.8786281,119690.0,119680.0,0.03567]
[1759427201816,0.8786281,119690.0,119680.0,0.1191765]
[1759427202018,0.1196681,119690.0,119680.0,0.1191765]
[1759427202218,0.8784281,119690.0,119680.0,0.1191765]
[1759427204126,0.8784281,119690.0,119680.0,0.02296]
[1759427204720,0.1196681,119690.0,119680.0,0.02296]
[1759427204913,0.8783481,119690.0,119680.0,0.02296]
[1759427206220,0.1196681,119690.0,119680.0,0.38376]
[1759427206419,0.8782681,119690.0,119680.0,0.38376]